[Event "Titled Tuesday Blitz December 06 Early 2022"]
[White "Fecker, Noah"]
[Black "Boros, Denes"]
[WhiteFideId "1334263"]
[BlackFideId "722340"]
[WhiteElo "2291"]
[BlackElo "2464"]
[Result "1/2-1/2"]
[Round "03"]
[TimeControl "180+1"]
[Date "2022.12.07"]
[WhiteClock "0:00:18"]
[BlackClock "0:00:18"]

1. d4 {[%clk 0:02:56]}  Nc6 {[%clk 0:03:00]} 2. d5 {[%clk 0:02:55]}  Ne5 {[%clk 0:02:59]} 3. e4 {[%clk 0:02:54]}  d6 {[%clk 0:02:59]} 4. Nf3 {[%clk 0:02:50]}  Nf6 {[%clk 0:02:58]} 5. Nxe5 {[%clk 0:02:49]}  dxe5 {[%clk 0:02:59]} 6. c4 {[%clk 0:02:49]}  e6 {[%clk 0:02:59]} 7. Nc3 {[%clk 0:02:48]}  Bc5 {[%clk 0:02:58]} 8. Be2 {[%clk 0:02:47]}  h6 {[%clk 0:02:56]} 9. a3 {[%clk 0:02:46]}  O-O {[%clk 0:02:54]} 10. O-O {[%clk 0:02:45]}  Bd4 {[%clk 0:02:54]} 11. Nb5 {[%clk 0:02:43]}  Bb6 {[%clk 0:02:50]} 12. Qc2 {[%clk 0:02:35]}  exd5 {[%clk 0:02:44]} 13. exd5 {[%clk 0:02:32]}  c6 {[%clk 0:02:41]} 14. dxc6 {[%clk 0:02:23]}  bxc6 {[%clk 0:02:42]} 15. Rd1 {[%clk 0:02:20]}  Qe7 {[%clk 0:02:41]} 16. Nd6 {[%clk 0:02:18]}  Bg4 {[%clk 0:02:34]} 17. Bxg4 {[%clk 0:01:59]}  Nxg4 {[%clk 0:02:33]} 18. c5 {[%clk 0:01:57]}  Bc7 {[%clk 0:02:17]} 19. h3 {[%clk 0:01:55]}  Nf6 {[%clk 0:02:15]} 20. b4 {[%clk 0:01:48]}  a5 {[%clk 0:02:10]} 21. Bb2 {[%clk 0:01:45]}  Nd5 {[%clk 0:02:03]} 22. b5 {[%clk 0:01:35]}  Nf4 {[%clk 0:01:57]} 23. bxc6 {[%clk 0:01:16]}  Qg5 {[%clk 0:01:56]} 24. Qe4 {[%clk 0:01:16]}  f5 {[%clk 0:01:56]} 25. h4 {[%clk 0:00:35]}  Nh3+ {[%clk 0:01:08]} 26. Kh2 {[%clk 0:00:30]}  fxe4 {[%clk 0:01:08]} 27. hxg5 {[%clk 0:00:30]}  Nxf2 {[%clk 0:01:08]} 28. Rf1 {[%clk 0:00:24]}  e3 {[%clk 0:01:04]} 29. Rae1 {[%clk 0:00:20]}  Nd3 {[%clk 0:01:00]} 30. Rxf8+ {[%clk 0:00:20]}  Rxf8 {[%clk 0:01:01]} 31. Re2 {[%clk 0:00:20]}  Rf2 {[%clk 0:01:01]} 32. Rxe3 {[%clk 0:00:20]}  Nxb2 {[%clk 0:00:59]} 33. gxh6 {[%clk 0:00:20]}  Rc2 {[%clk 0:00:54]} 34. Rxe5 {[%clk 0:00:20]}  Nc4 {[%clk 0:00:45]} 35. Re8+ {[%clk 0:00:17]}  Kh7 {[%clk 0:00:45]} 36. Re7 {[%clk 0:00:17]}  Bxd6+ {[%clk 0:00:41]} 37. cxd6 {[%clk 0:00:17]}  Nxd6 {[%clk 0:00:41]} 38. hxg7 {[%clk 0:00:16]}  Nf5 {[%clk 0:00:39]} 39. Ra7 {[%clk 0:00:15]}  Rc5 {[%clk 0:00:34]} 40. c7 {[%clk 0:00:15]}  Nxg7 {[%clk 0:00:33]} 41. c8=Q {[%clk 0:00:15]}  Rxc8 {[%clk 0:00:33]} 42. Rxa5 {[%clk 0:00:15]}  Kg6 {[%clk 0:00:30]} 43. Kh3 {[%clk 0:00:14]}  Rc3+ {[%clk 0:00:29]} 44. g3 {[%clk 0:00:14]}  Nf5 {[%clk 0:00:30]} 45. Kg4 {[%clk 0:00:14]}  Nxg3 {[%clk 0:00:20]} 46. Ra6+ {[%clk 0:00:13]}  Kf7 {[%clk 0:00:21]} 47. a4 {[%clk 0:00:13]}  Ne4 {[%clk 0:00:20]} 48. Kf4 {[%clk 0:00:13]}  Rc4 {[%clk 0:00:20]} 49. Ke5 {[%clk 0:00:12]}  Ng5 {[%clk 0:00:17]} 50. Ra7+ {[%clk 0:00:12]}  Kg6 {[%clk 0:00:17]} 51. Ra6+ {[%clk 0:00:12]}  Kh5 {[%clk 0:00:17]} 52. a5 {[%clk 0:00:13]}  Kg4 {[%clk 0:00:17]} 53. Ra8 {[%clk 0:00:13]}  Nf3+ {[%clk 0:00:17]} 54. Kd5 {[%clk 0:00:13]}  Rd4+ {[%clk 0:00:17]} 55. Kc5 {[%clk 0:00:13]}  Rd2 {[%clk 0:00:16]} 56. a6 {[%clk 0:00:14]}  Rc2+ {[%clk 0:00:17]} 57. Kb4 {[%clk 0:00:14]}  Ne5 {[%clk 0:00:15]} 58. a7 {[%clk 0:00:13]}  Nc6+ {[%clk 0:00:15]} 59. Kb5 {[%clk 0:00:14]}  Nxa7+ {[%clk 0:00:11]} 60. Rxa7 {[%clk 0:00:15]}  Kf3 {[%clk 0:00:12]} 61. Rf7+ {[%clk 0:00:15]}  Ke4 {[%clk 0:00:12]} 62. Re7+ {[%clk 0:00:15]}  Kd5 {[%clk 0:00:13]} 63. Rd7+ {[%clk 0:00:15]}  Ke6 {[%clk 0:00:13]} 64. Rd1 {[%clk 0:00:15]}  Ke5 {[%clk 0:00:13]} 65. Re1+ {[%clk 0:00:16]}  Kd4 {[%clk 0:00:14]} 66. Rd1+ {[%clk 0:00:17]}  Kc3 {[%clk 0:00:14]} 67. Rd6 {[%clk 0:00:17]}  Kb3 {[%clk 0:00:14]} 68. Rd3+ {[%clk 0:00:17]}  Kb2 {[%clk 0:00:15]} 69. Kb4 {[%clk 0:00:17]}  Re2 {[%clk 0:00:15]} 70. Rb3+ {[%clk 0:00:17]}  Kc2 {[%clk 0:00:15]} 71. Rc3+ {[%clk 0:00:17]}  Kd2 {[%clk 0:00:16]} 72. Rc4 {[%clk 0:00:18]}  Re3 {[%clk 0:00:16]} 73. Rd4+ {[%clk 0:00:18]}  Kc2 {[%clk 0:00:16]} 74. Rc4+ {[%clk 0:00:18]}  Kb2 {[%clk 0:00:16]} 75. Rh4 {[%clk 0:00:19]}  Rb3+ {[%clk 0:00:16]} 76. Kc4 {[%clk 0:00:18]}  Rg3 {[%clk 0:00:17]} 77. Rh2+ {[%clk 0:00:18]}  Ka3 {[%clk 0:00:18]} 78. Rf2 {[%clk 0:00:18]}  Rg4+ {[%clk 0:00:18]} 79. Kc3 {[%clk 0:00:18]}  Rg3+ {[%clk 0:00:18]} 80. Kc2 {[%clk 0:00:19]}  Rb3 {[%clk 0:00:19]} 81. Rd2 {[%clk 0:00:18]}  Rb2+ {[%clk 0:00:19]} 82. Kc3 {[%clk 0:00:18]}  Rb6 {[%clk 0:00:19]} 83. Rd5 {[%clk 0:00:18]}  Rc6+ {[%clk 0:00:20]} 84. Kd3 {[%clk 0:00:18]}  Kb4 {[%clk 0:00:20]} 85. Rd4+ {[%clk 0:00:19]}  Kb5 {[%clk 0:00:20]} 86. Rd8 {[%clk 0:00:19]}  Rc5 {[%clk 0:00:20]} 87. Rb8+ {[%clk 0:00:18]}  Ka6 {[%clk 0:00:20]} 88. Kd4 {[%clk 0:00:18]}  Rc7 {[%clk 0:00:20]} 89. Kd5 {[%clk 0:00:18]}  Rd7+ {[%clk 0:00:20]} 90. Kc6 {[%clk 0:00:18]}  Ka7 {[%clk 0:00:19]} 91. Rb1 {[%clk 0:00:17]}  Rh7 {[%clk 0:00:19]} 92. Ra1+ {[%clk 0:00:17]}  Kb8 {[%clk 0:00:19]} 93. Rd1 {[%clk 0:00:17]}  Rh6+ {[%clk 0:00:19]} 94. Rd6 {[%clk 0:00:17]}  Rxd6+ {[%clk 0:00:18]} 95. Kxd6 {[%clk 0:00:18]} 1/2-1/2


[Site "https://www.chess.com"]

[Event "Titled Tuesday Blitz December 06 Early 2022"]
[White "Fernandez Hernandez, Gerardo"]
[Black "Iskusnyh, Sergei"]
[WhiteFideId "2207400"]
[BlackFideId "4120027"]
[WhiteElo "2205"]
[BlackElo "2492"]
[Result "0-1"]
[Round "03"]
[TimeControl "180+1"]
[Date "2022.12.07"]
[WhiteClock "0:00:02"]
[BlackClock "0:00:41"]

1. e4 {[%clk 0:03:00]}  e6 {[%clk 0:02:59]} 2. d3 {[%clk 0:03:00]}  c5 {[%clk 0:02:58]} 3. g3 {[%clk 0:02:59]}  d5 {[%clk 0:02:58]} 4. Nd2 {[%clk 0:02:59]}  Nf6 {[%clk 0:02:59]} 5. Bg2 {[%clk 0:02:58]}  g6 {[%clk 0:02:59]} 6. Ngf3 {[%clk 0:02:57]}  Bg7 {[%clk 0:02:59]} 7. O-O {[%clk 0:02:57]}  O-O {[%clk 0:03:00]} 8. h4 {[%clk 0:02:56]}  Nc6 {[%clk 0:02:57]} 9. Re1 {[%clk 0:02:51]}  a5 {[%clk 0:02:56]} 10. a4 {[%clk 0:02:49]}  b6 {[%clk 0:02:56]} 11. c3 {[%clk 0:02:47]}  Ba6 {[%clk 0:02:55]} 12. e5 {[%clk 0:02:29]}  Nd7 {[%clk 0:02:51]} 13. d4 {[%clk 0:02:24]}  cxd4 {[%clk 0:02:52]} 14. cxd4 {[%clk 0:02:25]}  Nb4 {[%clk 0:02:49]} 15. Re3 {[%clk 0:02:08]}  Nd3 {[%clk 0:02:18]} 16. Nf1 {[%clk 0:01:30]}  Nxc1 {[%clk 0:02:17]} 17. Rxc1 {[%clk 0:01:28]}  Bh6 {[%clk 0:02:16]} 18. Ng5 {[%clk 0:01:28]}  Bxg5 {[%clk 0:02:09]} 19. hxg5 {[%clk 0:01:29]}  Qxg5 {[%clk 0:02:09]} 20. Rc7 {[%clk 0:01:25]}  Qd8 {[%clk 0:02:04]} 21. Rec3 {[%clk 0:01:22]}  Nc5 {[%clk 0:02:01]} 22. Rc6 {[%clk 0:01:07]}  Ne4 {[%clk 0:01:49]} 23. Bxe4 {[%clk 0:00:59]}  dxe4 {[%clk 0:01:50]} 24. Ne3 {[%clk 0:00:50]}  h5 {[%clk 0:01:47]} 25. d5 {[%clk 0:00:41]}  Bb7 {[%clk 0:01:31]} 26. Rd6 {[%clk 0:00:37]}  Qg5 {[%clk 0:01:26]} 27. dxe6 {[%clk 0:00:25]}  Qxe5 {[%clk 0:01:22]} 28. exf7+ {[%clk 0:00:20]}  Kg7 {[%clk 0:01:21]} 29. Rxb6 {[%clk 0:00:09]}  Rxf7 {[%clk 0:01:13]} 30. Qd6 {[%clk 0:00:04]}  Qxd6 {[%clk 0:01:03]} 31. Rxd6 {[%clk 0:00:05]}  Ba6 {[%clk 0:01:03]} 32. Rcc6 {[%clk 0:00:03]}  Bd3 {[%clk 0:00:51]} 33. Rxg6+ {[%clk 0:00:03]}  Kf8 {[%clk 0:00:52]} 34. Rh6 {[%clk 0:00:04]}  Raa7 {[%clk 0:00:46]} 35. Nd5 {[%clk 0:00:02]}  e3 {[%clk 0:00:41]} 0-1


[Site "https://www.chess.com"]

[Event "Titled Tuesday Blitz December 06 Early 2022"]
[White "Forgacs, Attila Jr."]
[Black "Skliarov, Viktor"]
[WhiteFideId "773654"]
[BlackFideId "14106736"]
[WhiteElo "2168"]
[BlackElo "2284"]
[Result "1-0"]
[Round "03"]
[TimeControl "180+1"]
[Date "2022.12.07"]
[WhiteClock "0:02:32"]
[BlackClock "0:00:54"]

1. e4 {[%clk 0:03:00]}  c5 {[%clk 0:02:59]} 2. d3 {[%clk 0:02:59]}  g6 {[%clk 0:02:59]} 3. g3 {[%clk 0:03:00]}  Bg7 {[%clk 0:02:59]} 4. Bg2 {[%clk 0:03:00]}  Nc6 {[%clk 0:02:59]} 5. f4 {[%clk 0:03:00]}  Nf6 {[%clk 0:02:59]} 6. Nf3 {[%clk 0:02:59]}  O-O {[%clk 0:02:59]} 7. O-O {[%clk 0:02:59]}  d5 {[%clk 0:03:00]} 8. e5 {[%clk 0:02:59]}  Ne8 {[%clk 0:03:00]} 9. c3 {[%clk 0:02:59]}  d4 {[%clk 0:02:59]} 10. c4 {[%clk 0:02:59]}  Nc7 {[%clk 0:02:53]} 11. Nbd2 {[%clk 0:02:59]}  Ne6 {[%clk 0:02:53]} 12. Ne4 {[%clk 0:02:59]}  b6 {[%clk 0:02:53]} 13. Qe2 {[%clk 0:02:51]}  Bb7 {[%clk 0:02:52]} 14. Bd2 {[%clk 0:02:51]}  Qc7 {[%clk 0:02:47]} 15. g4 {[%clk 0:02:50]}  f5 {[%clk 0:02:44]} 16. exf6 {[%clk 0:02:49]}  exf6 {[%clk 0:02:44]} 17. f5 {[%clk 0:02:47]}  gxf5 {[%clk 0:02:38]} 18. gxf5 {[%clk 0:02:47]}  Nf4 {[%clk 0:02:39]} 19. Bxf4 {[%clk 0:02:45]}  Qxf4 {[%clk 0:02:38]} 20. Nfg5 {[%clk 0:02:45]}  Qe3+ {[%clk 0:01:47]} 21. Qxe3 {[%clk 0:02:44]}  dxe3 {[%clk 0:01:48]} 22. Ne6 {[%clk 0:02:45]}  Rad8 {[%clk 0:01:36]} 23. Nxf8 {[%clk 0:02:40]}  Kxf8 {[%clk 0:01:35]} 24. Rfe1 {[%clk 0:02:32]}  Rxd3 {[%clk 0:00:54]} 25. Rad1 {[%clk 0:02:32]} 1-0


[Site "https://www.chess.com"]

[Event "Titled Tuesday Blitz December 06 Early 2022"]
[White "Franca, Ricardo Bedin"]
[Black "monkins"]
[WhiteFideId "2107066"]
[WhiteElo "2491"]
[BlackElo "2240"]
[Result "0-1"]
[Round "03"]
[TimeControl "180+1"]
[Date "2022.12.07"]
[WhiteClock "0:01:48"]
[BlackClock "0:00:23"]

1. e4 {[%clk 0:03:00]}  c6 {[%clk 0:02:59]} 2. d4 {[%clk 0:02:59]}  d5 {[%clk 0:03:00]} 3. Nd2 {[%clk 0:03:00]}  dxe4 {[%clk 0:03:00]} 4. Nxe4 {[%clk 0:03:01]}  Nf6 {[%clk 0:03:00]} 5. Nxf6+ {[%clk 0:03:01]}  exf6 {[%clk 0:03:01]} 6. c3 {[%clk 0:03:01]}  Bd6 {[%clk 0:03:02]} 7. Bd3 {[%clk 0:03:02]}  O-O {[%clk 0:03:01]} 8. Qc2 {[%clk 0:03:03]}  h6 {[%clk 0:02:55]} 9. Ne2 {[%clk 0:03:01]}  c5 {[%clk 0:02:55]} 10. Be3 {[%clk 0:02:53]}  cxd4 {[%clk 0:02:48]} 11. Nxd4 {[%clk 0:02:52]}  Nc6 {[%clk 0:02:48]} 12. Nxc6 {[%clk 0:02:50]}  bxc6 {[%clk 0:02:49]} 13. O-O {[%clk 0:02:50]}  Qc7 {[%clk 0:02:44]} 14. h3 {[%clk 0:02:49]}  Be6 {[%clk 0:02:40]} 15. c4 {[%clk 0:02:44]}  c5 {[%clk 0:02:29]} 16. Be4 {[%clk 0:02:41]}  Rab8 {[%clk 0:02:26]} 17. b3 {[%clk 0:02:40]}  a5 {[%clk 0:02:19]} 18. Rad1 {[%clk 0:02:38]}  Rfd8 {[%clk 0:02:13]} 19. Rd2 {[%clk 0:02:29]}  Bh2+ {[%clk 0:02:11]} 20. Kh1 {[%clk 0:02:28]}  Rxd2 {[%clk 0:02:11]} 21. Bxd2 {[%clk 0:02:27]}  Be5 {[%clk 0:02:05]} 22. f4 {[%clk 0:02:13]}  Bd4 {[%clk 0:02:00]} 23. f5 {[%clk 0:02:13]}  Bd7 {[%clk 0:01:54]} 24. Bf4 {[%clk 0:02:09]}  Be5 {[%clk 0:01:54]} 25. Bxe5 {[%clk 0:02:10]}  Qxe5 {[%clk 0:01:50]} 26. Bd5 {[%clk 0:02:08]}  a4 {[%clk 0:01:43]} 27. bxa4 {[%clk 0:02:07]}  Rb2 {[%clk 0:01:42]} 28. Qe4 {[%clk 0:02:05]}  Qxe4 {[%clk 0:01:05]} 29. Bxe4 {[%clk 0:02:05]}  Rxa2 {[%clk 0:01:02]} 30. Rd1 {[%clk 0:02:04]}  Bxa4 {[%clk 0:00:57]} 31. Rd8+ {[%clk 0:02:03]}  Kh7 {[%clk 0:00:56]} 32. Bd5 {[%clk 0:01:50]}  Bc2 {[%clk 0:00:50]} 33. g4 {[%clk 0:01:50]}  h5 {[%clk 0:00:28]} 34. Bxf7 {[%clk 0:01:50]}  hxg4 {[%clk 0:00:26]} 35. h4 {[%clk 0:01:50]}  Bxf5 {[%clk 0:00:25]} 36. Rd5 {[%clk 0:01:46]}  Be4+ {[%clk 0:00:24]} 37. Kg1 {[%clk 0:01:47]}  Bxd5 {[%clk 0:00:23]} 38. Bxd5 {[%clk 0:01:48]} 0-1


[Site "https://www.chess.com"]

[Event "Titled Tuesday Blitz December 06 Early 2022"]
[White "Gatterer, Florian"]
[Black "Mikhailovsky, Vladimir"]
[WhiteFideId "811688"]
[BlackFideId "34105414"]
[WhiteElo "2218"]
[BlackElo "2295"]
[Result "1/2-1/2"]
[Round "03"]
[TimeControl "180+1"]
[Date "2022.12.07"]
[WhiteClock "0:02:07"]
[BlackClock "0:02:05"]

1. c4 {[%clk 0:03:00]}  e6 {[%clk 0:02:59]} 2. Nf3 {[%clk 0:03:00]}  d5 {[%clk 0:02:59]} 3. e3 {[%clk 0:03:00]}  Nf6 {[%clk 0:02:59]} 4. Nc3 {[%clk 0:03:00]}  Nbd7 {[%clk 0:02:59]} 5. b3 {[%clk 0:03:00]}  b6 {[%clk 0:03:00]} 6. cxd5 {[%clk 0:02:58]}  exd5 {[%clk 0:03:00]} 7. Bb2 {[%clk 0:02:57]}  Bb7 {[%clk 0:03:00]} 8. d4 {[%clk 0:02:57]}  Bd6 {[%clk 0:03:01]} 9. Bd3 {[%clk 0:02:57]}  O-O {[%clk 0:03:00]} 10. O-O {[%clk 0:02:56]}  a6 {[%clk 0:03:01]} 11. Ne2 {[%clk 0:02:55]}  Qe7 {[%clk 0:02:59]} 12. Ng3 {[%clk 0:02:55]}  g6 {[%clk 0:02:58]} 13. Re1 {[%clk 0:02:50]}  Ne4 {[%clk 0:02:56]} 14. Bxe4 {[%clk 0:02:41]}  dxe4 {[%clk 0:02:55]} 15. Nd2 {[%clk 0:02:41]}  Bd5 {[%clk 0:02:33]} 16. Rc1 {[%clk 0:02:40]}  b5 {[%clk 0:02:30]} 17. f3 {[%clk 0:02:37]}  f5 {[%clk 0:02:15]} 18. f4 {[%clk 0:02:20]}  g5 {[%clk 0:02:05]} 19. Qh5 {[%clk 0:02:07]} 1/2-1/2


[Site "https://www.chess.com"]

[Event "Titled Tuesday Blitz December 06 Early 2022"]
[White "Golubev, Mikhail"]
[Black "Xu, Yi"]
[WhiteFideId "14100983"]
[BlackFideId "8605564"]
[WhiteElo "2374"]
[BlackElo "2471"]
[Result "0-1"]
[Round "03"]
[TimeControl "180+1"]
[Date "2022.12.06"]
[WhiteClock "0:00:02"]
[BlackClock "0:00:12"]

1. e4 {[%clk 0:03:00]}  c5 {[%clk 0:02:57]} 2. Nf3 {[%clk 0:03:00]}  d6 {[%clk 0:02:57]} 3. d4 {[%clk 0:03:00]}  cxd4 {[%clk 0:02:57]} 4. Nxd4 {[%clk 0:03:01]}  Nf6 {[%clk 0:02:57]} 5. Nc3 {[%clk 0:03:02]}  a6 {[%clk 0:02:57]} 6. Bc4 {[%clk 0:03:02]}  e6 {[%clk 0:02:57]} 7. O-O {[%clk 0:03:02]}  b5 {[%clk 0:02:57]} 8. Bb3 {[%clk 0:03:02]}  Bb7 {[%clk 0:02:53]} 9. Re1 {[%clk 0:03:00]}  Nbd7 {[%clk 0:02:49]} 10. a4 {[%clk 0:02:59]}  b4 {[%clk 0:02:41]} 11. Nd5 {[%clk 0:02:57]}  Nc5 {[%clk 0:02:37]} 12. Bg5 {[%clk 0:01:59]}  exd5 {[%clk 0:02:11]} 13. e5 {[%clk 0:01:21]}  dxe5 {[%clk 0:01:44]} 14. Rxe5+ {[%clk 0:01:22]}  Ne6 {[%clk 0:01:44]} 15. a5 {[%clk 0:01:22]}  Bd6 {[%clk 0:01:10]} 16. Ba4+ {[%clk 0:01:19]}  Ke7 {[%clk 0:01:10]} 17. Bxf6+ {[%clk 0:00:12]}  gxf6 {[%clk 0:01:02]} 18. Nf5+ {[%clk 0:00:11]}  Kf8 {[%clk 0:01:01]} 19. Re1 {[%clk 0:00:07]}  Ng7 {[%clk 0:00:48]} 20. Nxg7 {[%clk 0:00:05]}  Kxg7 {[%clk 0:00:48]} 21. Qg4+ {[%clk 0:00:04]}  Kf8 {[%clk 0:00:47]} 22. Re8+ {[%clk 0:00:04]}  Qxe8 {[%clk 0:00:46]} 23. Bxe8 {[%clk 0:00:05]}  Kxe8 {[%clk 0:00:44]} 24. Re1+ {[%clk 0:00:05]}  Kd8 {[%clk 0:00:41]} 25. Qg7 {[%clk 0:00:05]}  Rf8 {[%clk 0:00:41]} 26. Qxf6+ {[%clk 0:00:05]}  Kd7 {[%clk 0:00:39]} 27. Qf5+ {[%clk 0:00:03]}  Kc7 {[%clk 0:00:40]} 28. c3 {[%clk 0:00:03]}  Rae8 {[%clk 0:00:35]} 29. Rc1 {[%clk 0:00:03]}  b3 {[%clk 0:00:32]} 30. h3 {[%clk 0:00:02]}  Re6 {[%clk 0:00:30]} 31. c4 {[%clk 0:00:02]}  dxc4 {[%clk 0:00:23]} 32. Rxc4+ {[%clk 0:00:03]}  Kb8 {[%clk 0:00:24]} 33. Rc1 {[%clk 0:00:03]}  Rfe8 {[%clk 0:00:24]} 34. Rf1 {[%clk 0:00:03]}  Rg6 {[%clk 0:00:20]} 35. g3 {[%clk 0:00:02]}  f6 {[%clk 0:00:17]} 36. Qd7 {[%clk 0:00:02]}  Rxg3+ {[%clk 0:00:12]} 0-1


[Site "https://www.chess.com"]

[Event "Titled Tuesday Blitz December 06 Early 2022"]
[White "Gong, Qianyun"]
[Black "Ghosh, Chanchal Kumer"]
[WhiteFideId "8602425"]
[BlackFideId "10201858"]
[WhiteElo "2199"]
[BlackElo "2058"]
[Result "1-0"]
[Round "03"]
[TimeControl "180+1"]
[Date "2022.12.07"]
[WhiteClock "0:00:40"]
[BlackClock "0:00:21"]

1. e4 {[%clk 0:02:57]}  c5 {[%clk 0:03:00]} 2. Nf3 {[%clk 0:02:57]}  d6 {[%clk 0:03:00]} 3. d4 {[%clk 0:02:56]}  cxd4 {[%clk 0:03:01]} 4. Qxd4 {[%clk 0:02:57]}  Nf6 {[%clk 0:03:02]} 5. Bg5 {[%clk 0:02:56]}  Nc6 {[%clk 0:03:01]} 6. Bb5 {[%clk 0:02:56]}  e5 {[%clk 0:02:57]} 7. Qd3 {[%clk 0:02:49]}  Bd7 {[%clk 0:02:56]} 8. Nc3 {[%clk 0:02:48]}  a6 {[%clk 0:02:54]} 9. Ba4 {[%clk 0:02:42]}  b5 {[%clk 0:02:51]} 10. Bb3 {[%clk 0:02:42]}  Be6 {[%clk 0:02:34]} 11. Bd5 {[%clk 0:02:24]}  Rc8 {[%clk 0:02:21]} 12. O-O-O {[%clk 0:02:01]}  Be7 {[%clk 0:02:16]} 13. Bxf6 {[%clk 0:01:54]}  gxf6 {[%clk 0:02:10]} 14. Qe3 {[%clk 0:01:46]}  Qa5 {[%clk 0:01:54]} 15. Kb1 {[%clk 0:01:45]}  b4 {[%clk 0:01:48]} 16. Ne2 {[%clk 0:01:45]}  h5 {[%clk 0:01:36]} 17. Ng3 {[%clk 0:01:39]}  Qb5 {[%clk 0:01:20]} 18. h4 {[%clk 0:01:31]}  Na5 {[%clk 0:01:18]} 19. b3 {[%clk 0:01:29]}  Rc3 {[%clk 0:01:05]} 20. Qd2 {[%clk 0:01:16]}  Qc5 {[%clk 0:01:02]} 21. Ne2 {[%clk 0:01:09]}  Rg8 {[%clk 0:00:57]} 22. Bxe6 {[%clk 0:01:02]}  fxe6 {[%clk 0:00:55]} 23. Rhg1 {[%clk 0:00:59]}  Kf7 {[%clk 0:00:51]} 24. Nxc3 {[%clk 0:00:59]}  bxc3 {[%clk 0:00:50]} 25. Qe3 {[%clk 0:00:56]}  Qa3 {[%clk 0:00:47]} 26. Qxc3 {[%clk 0:00:56]}  Rb8 {[%clk 0:00:35]} 27. Qb2 {[%clk 0:00:54]}  Qc5 {[%clk 0:00:32]} 28. Ka1 {[%clk 0:00:47]}  Qxf2 {[%clk 0:00:28]} 29. Rdf1 {[%clk 0:00:47]}  Qc5 {[%clk 0:00:28]} 30. Ng5+ {[%clk 0:00:47]}  Ke8 {[%clk 0:00:27]} 31. Nxe6 {[%clk 0:00:48]}  Qc8 {[%clk 0:00:24]} 32. Ng7+ {[%clk 0:00:48]}  Kf7 {[%clk 0:00:23]} 33. Nf5 {[%clk 0:00:49]}  Nc4 {[%clk 0:00:21]} 34. Qc3 {[%clk 0:00:49]}  Na3 {[%clk 0:00:20]} 35. Qxc8 {[%clk 0:00:49]}  Rxc8 {[%clk 0:00:21]} 36. c4 {[%clk 0:00:49]}  Nc2+ {[%clk 0:00:20]} 37. Kb2 {[%clk 0:00:50]}  Nb4 {[%clk 0:00:21]} 38. g4 {[%clk 0:00:49]}  Nd3+ {[%clk 0:00:21]} 39. Kc3 {[%clk 0:00:50]}  Nf4 {[%clk 0:00:21]} 40. gxh5 {[%clk 0:00:50]}  Nxh5 {[%clk 0:00:22]} 41. Nxe7 {[%clk 0:00:49]}  Kxe7 {[%clk 0:00:22]} 42. Rg6 {[%clk 0:00:49]}  Nf4 {[%clk 0:00:22]} 43. Rg7+ {[%clk 0:00:48]}  Ke6 {[%clk 0:00:23]} 44. Rf3 {[%clk 0:00:47]}  Rh8 {[%clk 0:00:24]} 45. Rg4 {[%clk 0:00:46]}  Rd8 {[%clk 0:00:23]} 46. b4 {[%clk 0:00:44]}  Rc8 {[%clk 0:00:23]} 47. Kb3 {[%clk 0:00:44]}  Rb8 {[%clk 0:00:21]} 48. a4 {[%clk 0:00:44]}  Kf7 {[%clk 0:00:21]} 49. b5 {[%clk 0:00:44]}  Ne6 {[%clk 0:00:22]} 50. Kb4 {[%clk 0:00:44]}  axb5 {[%clk 0:00:21]} 51. cxb5 {[%clk 0:00:44]}  Nd4 {[%clk 0:00:21]} 52. Rfg3 {[%clk 0:00:44]}  Ke6 {[%clk 0:00:21]} 53. Rg8 {[%clk 0:00:44]}  Rb6 {[%clk 0:00:20]} 54. Re8+ {[%clk 0:00:44]}  Kf7 {[%clk 0:00:20]} 55. Rgg8 {[%clk 0:00:44]}  Nc6+ {[%clk 0:00:19]} 56. Kc4 {[%clk 0:00:45]}  Ne7 {[%clk 0:00:20]} 57. Rgf8+ {[%clk 0:00:44]}  Ke6 {[%clk 0:00:20]} 58. h5 {[%clk 0:00:43]}  Rb7 {[%clk 0:00:20]} 59. h6 {[%clk 0:00:43]}  Rc7+ {[%clk 0:00:21]} 60. Kb4 {[%clk 0:00:43]}  d5 {[%clk 0:00:21]} 61. h7 {[%clk 0:00:43]}  Rc4+ {[%clk 0:00:21]} 62. Ka5 {[%clk 0:00:43]}  Rxe4 {[%clk 0:00:22]} 63. h8=Q {[%clk 0:00:42]}  Kd7 {[%clk 0:00:20]} 64. Rd8+ {[%clk 0:00:41]}  Kc7 {[%clk 0:00:21]} 65. Qxf6 {[%clk 0:00:40]} 1-0


[Site "https://www.chess.com"]